[Event "EWIBCC 2019"]
[Site "Monte-Carlo"]
[Date "2019.11.29"]
[Round "3.5"]
[White "Paehtz, Elisabeth"]
[Black "Daulyte-Cornette, Deimante"]
[Result "1-0"]
[ECO "A47"]
[WhiteElo "2484"]
[BlackElo "2405"]
[Annotator "RC"]
[PlyCount "55"]
[EventDate "2019.11.29"]
[EventType "swiss"]
[EventCountry "MNC"]
[SourceTitle "playchess.com"]
[Source "ChessBase"]
[SourceQuality "1"]
[TimeControl "180+2"]

1. d4 {[%emt 0:00:00]} Nf6 {[%emt 0:00:00]} 2. Nf3 {[%emt 0:00:01]} b6 {[%emt 0:00:02]} 3. Bf4 {[%emt 0:00:06]} Bb7 {[%emt 0:00:02]} 4. c3 {[%emt 0:00:05]} d6 {[%emt 0:00:12]} 5. Nbd2 {[%emt 0:00:05]} Nh5 {[%emt 0:00:16]} 6. Bg5 {[%emt 0:00:06]} h6 {[%emt 0:00:04]} 7. Bh4 {[%emt 0:00:06]} g5 {[%emt 0:00:02]} 8. Bg3 {[%emt 0:00:01]} f5 {[%emt 0:00:12]} 9. e3 {[%emt 0:00:01]} Nxg3 {[%emt 0:00:17]} 10. hxg3 {[%emt 0:00:02]} Bg7 {[%emt 0:00:01]} 11. Nxg5 {[%emt 0:00:09]} hxg5 {[%emt 0:00:06]} 12. Rxh8+ {[%emt 0:00:05]} Bxh8 {[%emt 0:00:01]} 13. Qh5+ {[%emt 0:00:02]} Kd7 {[%emt 0:00:02]} 14. g4 {[%emt 0:00:46]} fxg4 {[%emt 0:00:21]} 15. Be2 {[%emt 0:00:10]} c5 {[%emt 0:00:22]} 16. Bxg4+ {[%emt 0:00:05]} Kc7 {[%emt 0:00:01]} 17. Bf3 {[%emt 0:00:22]} Nd7 {[%emt 0:00:19]} 18. Bxb7 {[%emt 0:00:05]} Kxb7 {[%emt 0:00:01]} 19. Qxg5 {[%emt 0:00:02]} Bf6 {[%emt 0:00:37]} 20. Qd5+ {[%emt 0:00:02]} Kc7 {[%emt 0:00:01]} 21. O-O-O {[%emt 0:00:08]} Qg8 {[%emt 0:00:05]} 22. Qf3 {[%emt 0:00:05]} Qxa2 {[%emt 0:00:08]} 23. Qxa8 {[%emt 0:00:03]} cxd4 {[%emt 0:00:18]} 24. exd4 {[%emt 0:00:09]} Qa1+ {[%emt 0:00:03]} 25. Kc2 {[%emt 0:00:01]} Qa4+ {[%emt 0:00:02]} 26. Nb3 {[%emt 0:00:03]} b5 {[%emt 0:00:08]} 27. Ra1 {[%emt 0:00:06]} Qc4 {[%emt 0:00:02]} 28. Rxa7+ {[%emt 0:00:04]} 1-0

[Event "EWIBCC 2019"]
[Site "Monte-Carlo"]
[Date "2019.11.29"]
[Round "3.8"]
[White "Worek, Joanna"]
[Black "Michna, Marta"]
[Result "0-1"]
[ECO "C01"]
[WhiteElo "2316"]
[BlackElo "2366"]
[Annotator "NA"]
[PlyCount "124"]
[EventDate "2019.11.29"]
[EventType "swiss"]
[EventCountry "MNC"]
[SourceTitle "playchess.com"]
[Source "ChessBase"]
[SourceQuality "1"]
[TimeControl "180+2"]

1. e4 {[%emt 0:00:00]} e6 {[%emt 0:00:00]} 2. d4 {[%emt 0:00:01]} d5 {[%emt 0:00:00]} 3. exd5 {[%emt 0:00:01]} exd5 {[%emt 0:00:00]} 4. c4 {[%emt 0:00:02]} Nc6 {[%emt 0:00:01]} 5. c5 {[%emt 0:00:22]} Nf6 {[%emt 0:00:13]} 6. Nc3 {[%emt 0:00:02]} g6 {[%emt 0:00:45]} 7. Bb5 {[%emt 0:00:01]} Bg7 {[%emt 0:00:05]} 8. Nge2 {[%emt 0:00:02]} O-O {[%emt 0:00:08]} 9. O-O {[%emt 0:00:07]} Bd7 {[%emt 0:00:27]} 10. a3 {[%emt 0:00:15]} Ne7 {[%emt 0:00:08]} 11. Bd3 {[%emt 0:00:14]} c6 {[%emt 0:00:04]} 12. b4 {[%emt 0:00:02]} Bf5 {[%emt 0:00:03]} 13. Bg5 {[%emt 0:00:06]} h6 {[%emt 0:00:02]} 14. Bh4 {[%emt 0:00:01]} Qd7 {[%emt 0:00:07]} 15. Re1 {[%emt 0:00:02]} Rfe8 {[%emt 0:00:01]} 16. a4 {[%emt 0:00:11]} Bxd3 {[%emt 0:00:24]} 17. Qxd3 {[%emt 0:00:01]} Nf5 {[%emt 0:00:00]} 18. Bg3 {[%emt 0:00:07]} Ne4 {[%emt 0:00:06]} 19. b5 {[%emt 0:00:03]} Nxc3 {[%emt 0:00:10]} 20. Qxc3 {[%emt 0:00:01]} Re4 {[%emt 0:00:04]} 21. bxc6 {[%emt 0:00:02]} bxc6 {[%emt 0:00:01]} 22. Be5 {[%emt 0:00:10]} Bxe5 {[%emt 0:00:05]} 23. dxe5 {[%emt 0:00:02]} Rc4 {[%emt 0:00:03]} 24. Qa3 {[%emt 0:00:02]} Qe7 {[%emt 0:00:01]} 25. Ng3 {[%emt 0:00:12]} Nxg3 {[%emt 0:00:06]} 26. hxg3 {[%emt 0:00:04]} Qxc5 {[%emt 0:00:02]} 27. Qd3 {[%emt 0:00:01]} Re8 {[%emt 0:00:06]} 28. e6 {[%emt 0:00:01]} f5 {[%emt 0:00:01]} 29. Qd2 {[%emt 0:00:03]} Kh7 {[%emt 0:00:02]} 30. Qb2 {[%emt 0:00:03]} Re7 {[%emt 0:00:05]} 31. Qf6 {[%emt 0:00:02]} Re4 {[%emt 0:00:07]} 32. Rxe4 {[%emt 0:00:02]} fxe4 {[%emt 0:00:06]} 33. Rb1 {[%emt 0:00:02]} Rg7 {[%emt 0:00:05]} 34. Rb8 {[%emt 0:00:06]} Qe7 {[%emt 0:00:03]} 35. Qe5 {[%emt 0:00:03]} e3 {[%emt 0:00:09]} 36. Qxe3 {[%emt 0:01:36]} c5 37. a5 {[%emt 0:00:00]} d4 {[%emt 0:00:02]} 38. Qe4 {[%emt 0:00:00]} Qc7 {[%emt 0:00:01]} 39. Re8 {[%emt 0:00:00]} c4 {[%emt 0:00:02]} 40. e7 {[%emt 0:00:00]} c3 {[%emt 0:00:09]} 41. Rh8+ {[%emt 0:00:00]} Kxh8 {[%emt 0:00:00]} 42. e8=Q+ {[%emt 0:00:00]} Kh7 {[%emt 0:00:00]} 43. Qxd4 {[%emt 0:00:00]} c2 {[%emt 0:00:01]} 44. Qde4 {[%emt 0:00:00]} c1=Q+ {[%emt 0:00:01]} 45. Kh2 {[%emt 0:00:00]} Qg5 {[%emt 0:00:01]} 46. a6 {[%emt 0:00:00]} Qh5+ {[%emt 0:00:02]} 47. Kg1 {[%emt 0:00:00]} Qc1+ {[%emt 0:00:01]} 48. Qe1 {[%emt 0:00:00]} Qxe1+ {[%emt 0:00:01]} 49. Qxe1 {[%emt 0:00:00]} Qb5 {[%emt 0:00:00]} 50. Qe6 {[%emt 0:00:01]} Qb6 {[%emt 0:00:02]} 51. Qc4 {[%emt 0:00:01]} Qf6 {[%emt 0:00:01]} 52. g4 {[%emt 0:00:02]} Rf7 {[%emt 0:00:00]} 53. Qc5 {[%emt 0:00:01]} Qb6 {[%emt 0:00:02]} 54. Qd5 {[%emt 0:00:02]} Qxf2+ {[%emt 0:00:01]} 55. Kh1 {[%emt 0:00:00]} Qf1+ {[%emt 0:00:01]} 56. Kh2 {[%emt 0:00:01]} Qf6 {[%emt 0:00:00]} 57. Qb5 {[%emt 0:00:02]} Rg7 {[%emt 0:00:01]} 58. Qc4 {[%emt 0:00:02]} Qb6 {[%emt 0:00:01]} 59. Kh3 {[%emt 0:00:01]} Qd6 {[%emt 0:00:02]} 60. Qb5 {[%emt 0:00:02]} Rd7 {[%emt 0:00:01]} 61. g3 {[%emt 0:00:03]} Qe6 {[%emt 0:00:01]} 62. Qa5 {[%emt 0:00:08]} h5 {[%emt 0:00:40]} 0-1

[Event "EWIBCC 2019"]
[Site "Monte-Carlo"]
[Date "2019.11.29"]
[Round "3.10"]
[White "Rogule, Laura"]
[Black "Bodnaruk, Anastasia"]
[Result "0-1"]
[ECO "A26"]
[WhiteElo "2293"]
[BlackElo "2412"]
[Annotator "NA"]
[PlyCount "42"]
[EventDate "2019.11.29"]
[EventType "swiss"]
[EventCountry "MNC"]
[SourceTitle "playchess.com"]
[Source "ChessBase"]
[SourceQuality "1"]
[TimeControl "180+2"]

1. c4 {[%emt 0:00:00]} e5 {[%emt 0:00:00]} 2. Nc3 {[%emt 0:00:00]} d6 {[%emt 0:00:00]} 3. g3 {[%emt 0:00:01]} Nc6 {[%emt 0:00:03]} 4. Bg2 {[%emt 0:00:01]} g6 {[%emt 0:00:01]} 5. e4 {[%emt 0:00:06]} Bg7 {[%emt 0:00:05]} 6. Nge2 {[%emt 0:00:01]} f5 {[%emt 0:00:04]} 7. d3 {[%emt 0:00:03]} Nf6 {[%emt 0:00:02]} 8. h3 {[%emt 0:00:23]} O-O {[%emt 0:00:05]} 9. Be3 {[%emt 0:00:04]} Be6 {[%emt 0:00:12]} 10. Qd2 {[%emt 0:00:10]} fxe4 {[%emt 0:00:41]} 11. Nxe4 {[%emt 0:00:02]} Nxe4 {[%emt 0:00:01]} 12. Bxe4 {[%emt 0:00:02]} d5 {[%emt 0:00:00]} 13. cxd5 {[%emt 0:00:05]} Bxd5 {[%emt 0:00:01]} 14. O-O {[%emt 0:00:16]} Qd7 {[%emt 0:00:11]} 15. Kh2 {[%emt 0:00:10]} Rad8 {[%emt 0:00:07]} 16. Rfd1 {[%emt 0:00:17]} Bxe4 {[%emt 0:00:08]} 17. dxe4 {[%emt 0:00:02]} Qxd2 {[%emt 0:00:01]} 18. Rxd2 {[%emt 0:00:15]} Rxd2 19. Bxd2 {[%emt 0:00:01]} Rxf2+ {[%emt 0:00:05]} 20. Kg1 {[%emt 0:00:02]} Rxe2 {[%emt 0:00:01]} 21. Bc3 {[%emt 0:00:01]} Nd4 {[%emt 0:00:06]} 0-1

[Event "EWIBCC 2019"]
[Site "Monte-Carlo"]
[Date "2019.11.29"]
[Round "3.13"]
[White "Ovod, Evgenija"]
[Black "Mkrtchian, Lilit"]
[Result "1/2-1/2"]
[ECO "C06"]
[WhiteElo "2347"]
[BlackElo "2402"]
[Annotator "NA"]
[PlyCount "78"]
[EventDate "2019.11.29"]
[EventType "swiss"]
[EventCountry "MNC"]
[SourceTitle "playchess.com"]
[Source "ChessBase"]
[SourceQuality "1"]
[TimeControl "180+2"]

1. e4 {[%emt 0:00:00]} e6 {[%emt 0:00:00]} 2. d4 {[%emt 0:00:00]} d5 {[%emt 0:00:00]} 3. Nd2 {[%emt 0:00:00]} Be7 {[%emt 0:00:01]} 4. Ngf3 {[%emt 0:00:04]} Nf6 {[%emt 0:00:01]} 5. e5 {[%emt 0:00:05]} Nfd7 {[%emt 0:00:02]} 6. Bd3 {[%emt 0:00:06]} c5 {[%emt 0:00:01]} 7. c3 {[%emt 0:00:02]} Nc6 {[%emt 0:00:01]} 8. O-O {[%emt 0:00:17]} a5 {[%emt 0:00:01]} 9. Re1 {[%emt 0:00:10]} cxd4 {[%emt 0:00:03]} 10. cxd4 {[%emt 0:00:06]} Qb6 {[%emt 0:00:02]} 11. Qa4 {[%emt 0:00:24]} g5 {[%emt 0:00:02]} 12. Nb3 {[%emt 0:00:21]} g4 {[%emt 0:00:06]} 13. Nfd2 {[%emt 0:00:09]} Qb4 {[%emt 0:00:28]} 14. Qxb4 {[%emt 0:00:07]} Nxb4 {[%emt 0:00:01]} 15. Bb5 {[%emt 0:00:32]} Nc2 {[%emt 0:00:03]} 16. Re2 {[%emt 0:00:34]} a4 {[%emt 0:00:19]} 17. Rb1 {[%emt 0:00:01]} axb3 {[%emt 0:00:02]} 18. Nxb3 {[%emt 0:00:02]} Nb4 {[%emt 0:00:10]} 19. a3 {[%emt 0:00:02]} Nc6 {[%emt 0:00:05]} 20. Be3 {[%emt 0:00:04]} Nb6 {[%emt 0:00:13]} 21. Rc1 {[%emt 0:00:03]} Bd7 {[%emt 0:00:01]} 22. Nc5 {[%emt 0:00:11]} Bxc5 {[%emt 0:00:07]} 23. Rxc5 {[%emt 0:00:03]} h5 {[%emt 0:00:40]} 24. Rec2 {[%emt 0:00:04]} f6 {[%emt 0:00:17]} 25. exf6 {[%emt 0:00:23]} Kf7 26. Bxc6 {[%emt 0:00:00]} Bxc6 {[%emt 0:00:02]} 27. Bg5 {[%emt 0:00:00]} Nd7 {[%emt 0:00:02]} 28. R5c3 {[%emt 0:00:00]} Rhg8 {[%emt 0:00:05]} 29. Bh4 {[%emt 0:00:00]} Nxf6 {[%emt 0:00:03]} 30. Bxf6 {[%emt 0:00:00]} Kxf6 {[%emt 0:00:01]} 31. g3 {[%emt 0:00:06]} Rgc8 {[%emt 0:00:05]} 32. Re3 {[%emt 0:00:05]} Bd7 {[%emt 0:00:03]} 33. Rce2 {[%emt 0:00:02]} Rc1+ {[%emt 0:00:59]} 34. Kg2 {[%emt 0:00:01]} Re8 {[%emt 0:00:00]} 35. Re5 {[%emt 0:00:03]} Bb5 {[%emt 0:00:00]} 36. R2e3 {[%emt 0:00:01]} Bf1+ {[%emt 0:00:00]} 37. Kg1 {[%emt 0:00:02]} Be2+ {[%emt 0:00:00]} 38. Kg2 {[%emt 0:00:02]} Bf3+ {[%emt 0:00:00]} 39. Rxf3+ gxf3+ {[%emt 0:00:00]} 1/2-1/2

[Event "EWIBCC 2019"]
[Site "Monte-Carlo"]
[Date "2019.11.29"]
[Round "3.14"]
[White "Semenova, Elena"]
[Black "Osmak, Iulija"]
[Result "0-1"]
[ECO "B00"]
[WhiteElo "2282"]
[BlackElo "2401"]
[Annotator "ChessBase"]
[PlyCount "94"]
[EventDate "2019.11.29"]
[EventType "swiss"]
[EventCountry "MNC"]
[SourceTitle "playchess.com"]
[Source "ChessBase"]
[SourceQuality "1"]
[TimeControl "180+2"]

1. e4 {[%emt 0:00:00]} Nc6 {[%emt 0:00:00]} 2. Nf3 {[%emt 0:00:01]} d6 {[%emt 0:00:00]} 3. d4 {[%emt 0:00:02]} Bg4 {[%emt 0:00:00]} 4. Bb5 {[%emt 0:00:08]} a6 {[%emt 0:00:07]} 5. Ba4 {[%emt 0:00:06]} b5 {[%emt 0:00:06]} 6. Bb3 {[%emt 0:00:01]} Nf6 {[%emt 0:00:12]} 7. h3 {[%emt 0:00:20]} Bh5 {[%emt 0:00:07]} 8. g4 {[%emt 0:00:19]} Bg6 {[%emt 0:00:01]} 9. Nc3 {[%emt 0:00:25]} e6 {[%emt 0:00:04]} 10. d5 {[%emt 0:00:23]} exd5 {[%emt 0:00:15]} 11. exd5 {[%emt 0:00:03]} Na5 {[%emt 0:00:06]} 12. Nd4 {[%emt 0:00:05]} Be7 {[%emt 0:00:05]} 13. h4 {[%emt 0:00:08]} h6 {[%emt 0:00:15]} 14. h5 {[%emt 0:00:24]} Bh7 {[%emt 0:00:02]} 15. Be3 {[%emt 0:00:04]} Qd7 {[%emt 0:00:15]} 16. f3 {[%emt 0:00:09]} O-O {[%emt 0:00:18]} 17. Qd2 {[%emt 0:00:01]} Nxb3 {[%emt 0:00:15]} 18. Nxb3 {[%emt 0:00:06]} c5 {[%emt 0:00:16]} 19. dxc6 {[%emt 0:00:10]} Qxc6 {[%emt 0:00:01]} 20. O-O-O {[%emt 0:00:08]} Qxf3 {[%emt 0:00:14]} 21. g5 {[%emt 0:00:06]} Ng4 {[%emt 0:00:06]} 22. Nd5 {[%emt 0:00:09]} Bxg5 {[%emt 0:00:19]} 23. Bxg5 hxg5 {[%emt 0:00:01]} 24. Rhf1 {[%emt 0:00:10]} Qe4 {[%emt 0:00:09]} 25. Rde1 {[%emt 0:00:01]} Qc4 {[%emt 0:00:04]} 26. Ne7+ {[%emt 0:00:11]} Kh8 {[%emt 0:00:00]} 27. Kb1 {[%emt 0:00:03]} Rae8 {[%emt 0:00:11]} 28. Nd4 {[%emt 0:00:02]} Ne5 {[%emt 0:00:05]} 29. Nef5 {[%emt 0:00:03]} f6 {[%emt 0:00:06]} 30. h6 {[%emt 0:00:01]} Bxf5 {[%emt 0:00:02]} 31. Nxf5 {[%emt 0:00:02]} Rd8 {[%emt 0:00:08]} 32. hxg7+ {[%emt 0:00:01]} Kg8 {[%emt 0:00:00]} 33. gxf8=Q+ Kxf8 34. Nd4 {[%emt 0:00:08]} Ke7 {[%emt 0:00:04]} 35. Qf2 {[%emt 0:00:03]} Rf8 {[%emt 0:00:02]} 36. b3 {[%emt 0:00:03]} Qc3 {[%emt 0:00:02]} 37. Qe3 {[%emt 0:00:01]} Qc7 {[%emt 0:00:03]} 38. Nf5+ {[%emt 0:00:03]} Ke6 {[%emt 0:00:02]} 39. Qe4 {[%emt 0:00:02]} d5 {[%emt 0:00:02]} 40. Nd4+ {[%emt 0:00:03]} Kd6 {[%emt 0:00:01]} 41. Qf5 {[%emt 0:00:01]} Qe7 {[%emt 0:00:03]} 42. Rxe5 {[%emt 0:00:04]} Qxe5 {[%emt 0:00:02]} 43. Qxe5+ Kxe5 44. Nc6+ Kd6 {[%emt 0:00:17]} 45. Nd4 {[%emt 0:00:10]} Ke5 46. Nc6+ Kd6 47. Nd4 {[%emt 0:00:04]} Ke5 0-1

[Event "EWIBCC 2019"]
[Site "Monte-Carlo"]
[Date "2019.11.29"]
[Round "3.16"]
[White "Janzelj, Lara"]
[Black "Buksa, Nataliya"]
[Result "0-1"]
[ECO "D36"]
[WhiteElo "2158"]
[BlackElo "2410"]
[Annotator "ChessBase"]
[PlyCount "112"]
[EventDate "2019.11.29"]
[EventType "swiss"]
[EventCountry "MNC"]
[SourceTitle "playchess.com"]
[Source "ChessBase"]
[SourceQuality "1"]
[TimeControl "180+2"]

1. d4 {[%emt 0:00:00]} d5 {[%emt 0:00:00]} 2. c4 e6 3. Nc3 {[%emt 0:00:03]} Nf6 {[%emt 0:00:01]} 4. cxd5 {[%emt 0:00:01]} exd5 {[%emt 0:00:00]} 5. Bg5 {[%emt 0:03:06]} c6 6. e3 {[%emt 0:00:00]} Nbd7 {[%emt 0:00:02]} 7. Qc2 {[%emt 0:00:00]} Be7 {[%emt 0:00:02]} 8. Bd3 {[%emt 0:00:00]} Nh5 {[%emt 0:00:00]} 9. Bxe7 {[%emt 0:00:00]} Qxe7 {[%emt 0:00:01]} 10. Nge2 {[%emt 0:00:00]} g6 {[%emt 0:00:01]} 11. O-O-O {[%emt 0:00:00]} Nb6 {[%emt 0:00:01]} 12. Kb1 {[%emt 0:00:00]} Be6 {[%emt 0:00:01]} 13. h3 {[%emt 0:00:00]} O-O-O {[%emt 0:00:01]} 14. g4 {[%emt 0:00:00]} Ng7 {[%emt 0:00:01]} 15. Nf4 {[%emt 0:00:00]} Kb8 {[%emt 0:00:01]} 16. Na4 {[%emt 0:00:00]} Nxa4 {[%emt 0:00:01]} 17. Qxa4 {[%emt 0:00:00]} Bc8 {[%emt 0:00:01]} 18. Rc1 {[%emt 0:00:00]} h5 {[%emt 0:00:01]} 19. gxh5 {[%emt 0:00:00]} Nxh5 {[%emt 0:00:02]} 20. Ne2 {[%emt 0:00:00]} Nf6 {[%emt 0:00:01]} 21. Qb3 {[%emt 0:00:00]} Ne4 {[%emt 0:00:17]} 22. Bxe4 {[%emt 0:00:00]} Qxe4+ {[%emt 0:00:01]} 23. Ka1 {[%emt 0:00:00]} Bxh3 {[%emt 0:01:09]} 24. Nc3 {[%emt 0:00:00]} Qd3 {[%emt 0:00:08]} 25. Rhd1 {[%emt 0:00:00]} Qc4 {[%emt 0:00:11]} 26. Qa3 {[%emt 0:00:00]} Bg4 {[%emt 0:00:04]} 27. Rg1 {[%emt 0:00:00]} Bc8 {[%emt 0:00:06]} 28. Na4 {[%emt 0:00:00]} Qb5 {[%emt 0:00:09]} 29. Rc3 {[%emt 0:00:00]} Rh2 {[%emt 0:00:10]} 30. Qe7 {[%emt 0:00:00]} Rdh8 {[%emt 0:00:25]} 31. Nc5 {[%emt 0:00:00]} Rxf2 {[%emt 0:00:02]} 32. Qe5+ {[%emt 0:00:10]} Ka8 {[%emt 0:00:01]} 33. Rb1 {[%emt 0:00:03]} Rxb2 {[%emt 0:00:14]} 34. Rcc1 {[%emt 0:00:05]} Rhh2 {[%emt 0:00:05]} 35. Qxh2 {[%emt 0:00:05]} Rxh2 {[%emt 0:00:01]} 36. Rxb5 {[%emt 0:00:00]} cxb5 {[%emt 0:00:01]} 37. Nd3 {[%emt 0:00:05]} Kb8 {[%emt 0:00:01]} 38. Ne5 {[%emt 0:00:03]} Be6 {[%emt 0:00:01]} 39. e4 {[%emt 0:00:07]} a6 {[%emt 0:00:04]} 40. exd5 {[%emt 0:00:01]} Bxd5 {[%emt 0:00:02]} 41. Nd7+ {[%emt 0:00:01]} Ka7 {[%emt 0:00:00]} 42. Rc7 {[%emt 0:00:05]} Rxa2+ {[%emt 0:00:04]} 43. Kb1 {[%emt 0:00:00]} Ra4 {[%emt 0:00:02]} 44. Nc5 {[%emt 0:00:04]} Rb4+ {[%emt 0:00:05]} 45. Ka1 {[%emt 0:00:03]} g5 {[%emt 0:00:07]} 46. Rd7 {[%emt 0:00:01]} Bc6 {[%emt 0:00:01]} 47. Rxf7 {[%emt 0:00:02]} Rxd4 {[%emt 0:00:01]} 48. Rg7 {[%emt 0:00:02]} g4 {[%emt 0:00:04]} 49. Ne6 {[%emt 0:00:01]} Rd6 {[%emt 0:00:12]} 50. Nf4 {[%emt 0:00:07]} Bf3 {[%emt 0:00:03]} 51. Kb2 {[%emt 0:00:02]} Kb6 {[%emt 0:00:01]} 52. Kc3 {[%emt 0:00:01]} a5 {[%emt 0:00:01]} 53. Nd3 {[%emt 0:00:02]} b4+ {[%emt 0:00:02]} 54. Nxb4 {[%emt 0:00:05]} axb4+ {[%emt 0:00:01]} 55. Kxb4 {[%emt 0:00:00]} Rd1 {[%emt 0:00:01]} 56. Kc3 {[%emt 0:00:01]} Rg1 {[%emt 0:00:02]} 0-1

[Event "EWIBCC 2019"]
[Site "Monte-Carlo"]
[Date "2019.11.29"]
[Round "3.17"]
[White "Guichard, Pauline"]
[Black "Novkovic, Julia"]
[Result "1-0"]
[ECO "A41"]
[WhiteElo "2407"]
[BlackElo "2161"]
[Annotator "ChessBase"]
[PlyCount "111"]
[EventDate "2019.11.29"]
[EventType "swiss"]
[EventCountry "MNC"]
[SourceTitle "playchess.com"]
[Source "ChessBase"]
[SourceQuality "1"]
[TimeControl "180+2"]

1. c4 {[%emt 0:00:00]} e5 {[%emt 0:00:00]} 2. Nc3 {[%emt 0:00:00]} Nc6 {[%emt 0:00:01]} 3. Nf3 {[%emt 0:00:01]} d6 {[%emt 0:00:00]} 4. d4 {[%emt 0:00:02]} exd4 {[%emt 0:00:02]} 5. Nxd4 {[%emt 0:00:01]} Nxd4 {[%emt 0:00:18]} 6. Qxd4 {[%emt 0:00:02]} Qf6 {[%emt 0:00:01]} 7. Qe3+ {[%emt 0:00:21]} Qe6 {[%emt 0:00:23]} 8. Nd5 {[%emt 0:00:16]} Qxe3 {[%emt 0:00:13]} 9. Bxe3 {[%emt 0:00:02]} Kd8 {[%emt 0:00:01]} 10. g3 {[%emt 0:00:04]} c6 {[%emt 0:00:02]} 11. Nc3 {[%emt 0:00:04]} Be6 {[%emt 0:00:01]} 12. b3 {[%emt 0:00:12]} Ne7 {[%emt 0:00:24]} 13. Bg2 {[%emt 0:00:03]} Nf5 {[%emt 0:00:01]} 14. Bf4 {[%emt 0:00:09]} h6 {[%emt 0:00:12]} 15. h4 {[%emt 0:00:02]} g6 {[%emt 0:00:51]} 16. O-O-O {[%emt 0:00:02]} Ke7 {[%emt 0:00:18]} 17. e4 {[%emt 0:00:04]} Ng7 {[%emt 0:00:04]} 18. Bxd6+ {[%emt 0:00:06]} Ke8 {[%emt 0:00:01]} 19. Be5 {[%emt 0:00:06]} Rg8 {[%emt 0:00:04]} 20. Rd3 {[%emt 0:00:18]} Ba3+ {[%emt 0:00:22]} 21. Kc2 {[%emt 0:00:01]} f5 {[%emt 0:00:01]} 22. Re1 {[%emt 0:00:33]} Kf7 {[%emt 0:00:08]} 23. exf5 {[%emt 0:00:18]} Nxf5 {[%emt 0:00:10]} 24. Ne4 {[%emt 0:00:05]} Rad8 {[%emt 0:00:01]} 25. Red1 {[%emt 0:00:11]} Rxd3 {[%emt 0:00:01]} 26. Rxd3 {[%emt 0:00:01]} Rf8 {[%emt 0:00:02]} 27. Nd6+ {[%emt 0:00:33]} Nxd6 {[%emt 0:00:08]} 28. Bxd6 {[%emt 0:00:02]} Bxd6 {[%emt 0:00:01]} 29. Rxd6 {[%emt 0:00:01]} Ke7 {[%emt 0:00:01]} 30. Rd2 {[%emt 0:00:02]} Rf5 {[%emt 0:00:02]} 31. Kc3 {[%emt 0:00:06]} Re5 {[%emt 0:00:02]} 32. Bf3 {[%emt 0:00:04]} Re1 {[%emt 0:00:01]} 33. Re2 {[%emt 0:00:02]} Rb1 {[%emt 0:00:02]} 34. Bg4 {[%emt 0:00:02]} Ra1 {[%emt 0:00:05]} 35. Rxe6+ {[%emt 0:00:14]} Kf7 36. Re2 {[%emt 0:00:00]} Kf6 {[%emt 0:00:01]} 37. Bf3 {[%emt 0:00:00]} g5 {[%emt 0:00:01]} 38. hxg5+ {[%emt 0:00:00]} hxg5 {[%emt 0:00:01]} 39. Bg4 {[%emt 0:00:00]} Kg6 {[%emt 0:00:01]} 40. f4 {[%emt 0:00:00]} Kf6 {[%emt 0:00:01]} 41. fxg5+ {[%emt 0:00:00]} Kxg5 {[%emt 0:00:00]} 42. Bc8 {[%emt 0:00:00]} b6 {[%emt 0:00:01]} 43. b4 {[%emt 0:00:16]} a5 44. bxa5 {[%emt 0:00:00]} bxa5 {[%emt 0:00:02]} 45. Kd4 {[%emt 0:00:00]} Rb1 {[%emt 0:00:02]} 46. Kc5 {[%emt 0:00:00]} Rb8 {[%emt 0:00:01]} 47. Bd7 {[%emt 0:00:00]} Rb4 {[%emt 0:00:02]} 48. Bxc6 {[%emt 0:00:00]} Kg4 {[%emt 0:00:01]} 49. Re3 {[%emt 0:00:00]} Rb2 {[%emt 0:00:03]} 50. Ra3 {[%emt 0:00:00]} Kf5 {[%emt 0:00:03]} 51. Rxa5 {[%emt 0:00:00]} Kg4 {[%emt 0:00:01]} 52. Ra3 {[%emt 0:00:00]} Rb8 {[%emt 0:00:04]} 53. Bd7+ {[%emt 0:00:00]} Kg5 {[%emt 0:00:06]} 54. Kd6 {[%emt 0:00:03]} Rb4 {[%emt 0:00:02]} 55. c5 {[%emt 0:00:02]} Rd4+ {[%emt 0:00:00]} 56. Kc7 {[%emt 0:00:03]} 1-0

[Event "EWIBCC 2019"]
[Site "Monte-Carlo"]
[Date "2019.11.29"]
[Round "3.18"]
[White "Dornbusch, Tatiana"]
[Black "Nicoara, Malina"]
[Result "1-0"]
[ECO "E69"]
[WhiteElo "2269"]
[BlackElo "2066"]
[Annotator "NA"]
[PlyCount "41"]
[EventDate "2019.11.29"]
[EventType "swiss"]
[EventCountry "MNC"]
[SourceTitle "playchess.com"]
[Source "ChessBase"]
[SourceQuality "1"]
[TimeControl "180+2"]

1. d4 {[%emt 0:00:01]} Nf6 {[%emt 0:00:00]} 2. Nf3 {[%emt 0:00:01]} d6 {[%emt 0:00:03]} 3. g3 {[%emt 0:00:03]} c6 {[%emt 0:00:09]} 4. Bg2 {[%emt 0:00:02]} g6 {[%emt 0:00:02]} 5. O-O {[%emt 0:00:03]} Bg7 {[%emt 0:00:00]} 6. c4 {[%emt 0:00:02]} O-O {[%emt 0:00:03]} 7. Nc3 {[%emt 0:00:02]} Nbd7 {[%emt 0:00:03]} 8. e4 {[%emt 0:00:09]} e5 {[%emt 0:00:01]} 9. h3 {[%emt 0:00:02]} Re8 {[%emt 0:00:05]} 10. Be3 {[%emt 0:00:03]} Qc7 {[%emt 0:00:16]} 11. Qc2 {[%emt 0:00:08]} Nf8 {[%emt 0:00:07]} 12. Rad1 {[%emt 0:00:25]} a6 {[%emt 0:00:02]} 13. c5 {[%emt 0:00:09]} exd4 {[%emt 0:00:13]} 14. cxd6 {[%emt 0:00:04]} Qxd6 {[%emt 0:00:03]} 15. e5 {[%emt 0:00:18]} Rxe5 {[%emt 0:00:12]} 16. Nxe5 {[%emt 0:00:18]} Qxe5 {[%emt 0:00:01]} 17. Bxd4 {[%emt 0:00:02]} Qa5 {[%emt 0:00:01]} 18. Ne4 {[%emt 0:00:19]} Bf5 {[%emt 0:00:03]} 19. Nxf6+ {[%emt 0:00:14]} Bxf6 {[%emt 0:00:03]} 20. Qd2 {[%emt 0:00:08]} Bxd4 {[%emt 0:00:07]} 21. Qxa5 {[%emt 0:00:02]} 1-0